[Event "55th Rubinstein Memorial-A 2019"]
[Site "Polanica-Zdroj"]
[Date "2019.08.18"]
[Round "2.5"]
[White "Rosol, Alexander"]
[Black "Oglaza, Oskar"]
[Result "0-1"]
[ECO "B48"]
[WhiteElo "1968"]
[BlackElo "2367"]
[Annotator "NA"]
[PlyCount "56"]
[EventDate "2019.08.17"]
[EventType "swiss"]
[EventCountry "POL"]
[SourceTitle "playchess.com"]
[Source "ChessBase"]
[SourceQuality "1"]
[TimeControl "40/5400+30:1800+30"]

1. e4 {[%emt 0:00:00]} c5 {[%emt 0:00:00]} 2. Nf3 {[%emt 0:00:00]} e6 {[%emt 0:00:00]} 3. d4 {[%emt 0:00:16]} cxd4 {[%emt 0:00:00]} 4. Nxd4 {[%emt 0:00:07]} Nc6 {[%emt 0:00:01]} 5. Be3 {[%emt 0:01:33]} Qc7 {[%emt 0:00:43]} 6. Nc3 {[%emt 0:02:44]} a6 {[%emt 0:00:06]} 7. Qf3 {[%emt 0:05:00] B48: Sicilian: Taimanov: 5 Nc3 Qc7 6 Be3 a6 without Be2} Bd6 {[%emt 0:00:08]} 8. O-O-O {[%emt 0:00:48]} Be5 {[%emt 0:00:04]} 9. Nxc6 {[%emt 0:01:37]} bxc6 {[%emt 0:01:00]} 10. Bd4 {[%emt 0:00:57]} Nf6 {[%emt 0:05:15]} 11. Bxe5 {[%emt 0:07:57]} Qxe5 {[%emt 0:00:06]} 12. Qe2 $146 {[%emt 0:05:06]} ({Predecessor:} 12. Qg3 Qxg3 13. hxg3 d5 14. Be2 h6 {½-½ (44) Shirov,A (2715)-Svidler,P (2727) Skopje 2015}) 12... O-O {[%emt 0:02:00]} 13. g3 {[%emt 0:01:27]} Rb8 {[%emt 0:02:06]} 14. f4 {[%emt 0:04:05]} Qa5 {[%emt 0:00:18]} 15. g4 {[%emt 0:25:02]} d5 {[%emt 0:03:31]} 16. e5 {[%emt 0:04:47]} Nd7 {[%emt 0:00:23]} 17. Rd3 {[%emt 0:10:24]} Qb4 {[%emt 0:01:21]} 18. Qf2 {[%emt 0:05:16]} Qxb2+ {[%emt 0:01:56]} 19. Kd1 {[%emt 0:04:13]} f6 {[%emt 0:02:57]} 20. Rh3 {[%emt 0:06:43]} fxe5 {[%emt 0:00:24]} 21. Qh4 {[%emt 0:00:55]} Rxf4 {[%emt 0:05:25]} 22. Qxh7+ {[%emt 0:01:08]} Kf7 $19 {[%emt 0:00:24]} 23. g5 {[%emt 0:03:56]} Qb4 {[%emt 0:41:49]} 24. g6+ {[%emt 0:02:04]} Kf6 {[%emt 0:00:08]} 25. Qg8 {[%emt 0:01:55]} Qf8 {[%emt 0:00:05]} 26. Qh7 {[%emt 0:01:35]} Ke7 {[%emt 0:00:26]} 27. Bg2 {[%emt 0:00:22]} Nf6 {[%emt 0:00:08]} 28. Qh8 {[%emt 0:00:58]} Bd7 {[%emt 0:01:00]} 0-1

[Event "55th Rubinstein Memorial-A 2019"]
[Site "Polanica-Zdroj"]
[Date "2019.08.18"]
[Round "2.6"]
[White "Grabarczyk, Miroslaw"]
[Black "Betkowski, Andrzej"]
[Result "1-0"]
[ECO "A88"]
[WhiteElo "2362"]
[BlackElo "2023"]
[Annotator "NA"]
[PlyCount "123"]
[EventDate "2019.08.17"]
[EventType "swiss"]
[EventCountry "POL"]
[SourceTitle "playchess.com"]
[Source "ChessBase"]
[SourceQuality "1"]
[TimeControl "40/5400+30:1800+30"]

1. d4 {[%emt 0:00:00]} g6 {[%emt 0:00:00]} 2. Nf3 {[%emt 0:01:13]} Bg7 {[%emt 0:00:10]} 3. g3 {[%emt 0:01:56]} d6 {[%emt 0:00:29]} 4. Bg2 {[%emt 0:00:41]} f5 {[%emt 0:01:14]} 5. O-O {[%emt 0:01:53]} Nf6 {[%emt 0:00:32]} 6. c4 {[%emt 0:01:17]} O-O {[%emt 0:00:32]} 7. Nc3 {[%emt 0:01:55]} c6 {[%emt 0:01:22]} 8. Qc2 {[%emt 0:07:56]} Na6 {[%emt 0:02:57]} 9. a3 {[%emt 0:00:45]} Qe8 {[%emt 0:02:33]} 10. e4 {[%emt 0:01:17]} fxe4 {[%emt 0:05:33]} 11. Nxe4 {[%emt 0:00:27]} Bf5 {[%emt 0:06:48]} 12. Nxf6+ {[%emt 0:04:16]} exf6 {[%emt 0:06:54]} 13. Qb3 {[%emt 0:10:07]} Qd7 {[%emt 0:12:09]} 14. Re1 {[%emt 0:07:46]} Rfe8 {[%emt 0:06:26]} 15. Bf4 {[%emt 0:02:34]} Be6 $14 {[%emt 0:15:23]} 16. d5 {[%emt 0:09:43]} cxd5 {[%emt 0:02:00]} 17. cxd5 {[%emt 0:00:18]} Bf7 {[%emt 0:01:03]} 18. Nd4 {[%emt 0:01:04]} g5 {[%emt 0:11:21]} 19. Be3 {[%emt 0:08:55]} Nc5 {[%emt 0:01:41]} 20. Qb5 {[%emt 0:02:09]} a6 {[%emt 0:06:21]} 21. Qxd7 {[%emt 0:05:43]} Nxd7 {[%emt 0:00:02]} 22. Rac1 {[%emt 0:05:42]} Ne5 {[%emt 0:04:58]} 23. Rc7 {[%emt 0:01:12]} b5 {[%emt 0:01:55]} 24. Ne6 {[%emt 0:04:21]} Rac8 {[%emt 0:02:29]} 25. Rec1 {[%emt 0:00:55]} Nc4 {[%emt 0:00:59]} 26. Rxc8 {[%emt 0:01:50]} Rxc8 {[%emt 0:00:07]} 27. b3 {[%emt 0:07:27]} Nb6 {[%emt 0:00:06]} 28. Rc7 {[%emt 0:00:14]} Bxe6 {[%emt 0:02:08]} 29. Bxb6 {[%emt 0:00:07]} Bf5 {[%emt 0:01:02]} 30. a4 {[%emt 0:03:49]} Rxc7 {[%emt 0:02:00]} 31. Bxc7 {[%emt 0:00:04]} Bf8 {[%emt 0:00:28]} 32. axb5 {[%emt 0:02:05]} axb5 {[%emt 0:00:02]} 33. Bf1 {[%emt 0:00:08]} Be4 {[%emt 0:00:52]} 34. Bxb5 {[%emt 0:00:18]} Bxd5 {[%emt 0:00:07]} 35. b4 {[%emt 0:00:04]} Bb7 {[%emt 0:00:22]} 36. Bd7 {[%emt 0:01:07]} Kf7 {[%emt 0:01:33]} 37. b5 {[%emt 0:00:46]} d5 {[%emt 0:02:02]} 38. g4 {[%emt 0:02:56]} Bc5 {[%emt 0:00:44]} 39. Kf1 {[%emt 0:00:27]} Ke7 {[%emt 0:00:50]} 40. Bf5 {[%emt 0:00:00]} h6 {[%emt 0:00:00]} 41. Ke2 {[%emt 0:00:48]} Bd6 {[%emt 0:07:11]} 42. b6 {[%emt 0:00:25]} Ba6+ {[%emt 0:06:14]} 43. Kd2 {[%emt 0:00:53]} Bc5 {[%emt 0:02:19]} 44. f3 {[%emt 0:02:18]} Bb4+ {[%emt 0:04:36]} 45. Kc2 {[%emt 0:00:08]} Bd6 {[%emt 0:00:10]} 46. Bd3 {[%emt 0:04:53]} Bb7 {[%emt 0:03:43]} 47. Bf5 {[%emt 0:02:21]} Be5 {[%emt 0:02:22]} 48. Kd2 {[%emt 0:07:12]} Bd6 {[%emt 0:01:52]} 49. Kc3 {[%emt 0:01:55]} Be5+ {[%emt 0:02:26]} 50. Kd3 {[%emt 0:03:59]} Ba6+ {[%emt 0:00:25]} 51. Ke3 {[%emt 0:00:54]} Bb7 {[%emt 0:00:23]} 52. Kd2 {[%emt 0:05:00]} Ba6 {[%emt 0:01:02]} 53. Kc2 {[%emt 0:01:59]} Bb7 {[%emt 0:00:12]} 54. Kb3 {[%emt 0:03:00]} Bd6 {[%emt 0:00:17]} 55. Ka4 {[%emt 0:01:36]} Bc6+ {[%emt 0:03:27]} 56. Ka5 {[%emt 0:00:51]} Bb7 {[%emt 0:00:11]} 57. Kb5 {[%emt 0:00:31]} d4 {[%emt 0:01:45]} 58. Kc4 {[%emt 0:00:39]} Be5 {[%emt 0:00:52]} 59. Be4 {[%emt 0:01:10]} Ba6+ {[%emt 0:01:01]} 60. Kc5 {[%emt 0:00:38]} d3 {[%emt 0:00:38]} 61. Bxe5 {[%emt 0:00:35]} d2 {[%emt 0:00:25]} 62. Bd6+ {[%emt 0:00:19]} 1-0

[Event "55th Rubinstein Memorial-A 2019"]
[Site "Polanica-Zdroj"]
[Date "2019.08.18"]
[Round "2.7"]
[White "Kopica, Paulina"]
[Black "Lewtak, Damian"]
[Result "0-1"]
[ECO "B40"]
[WhiteElo "1932"]
[BlackElo "2354"]
[Annotator "NA"]
[PlyCount "74"]
[EventDate "2019.08.17"]
[EventType "swiss"]
[EventCountry "POL"]
[SourceTitle "playchess.com"]
[Source "ChessBase"]
[SourceQuality "1"]
[TimeControl "40/5400+30:1800+30"]

1. e4 {[%emt 0:00:00]} c5 {[%emt 0:00:00]} 2. Nf3 {[%emt 0:00:00]} e6 {[%emt 0:00:27]} 3. c3 {[%emt 0:00:30]} Nf6 {[%emt 0:00:30]} 4. Bd3 {[%emt 0:00:20]} Nc6 {[%emt 0:03:02]} 5. Bc2 {[%emt 0:02:30]} Qc7 {[%emt 0:03:22]} 6. d4 {[%emt 0:07:19]} cxd4 {[%emt 0:00:16]} 7. cxd4 {[%emt 0:01:16]} Nb4 {[%emt 0:00:18]} 8. Nc3 {[%emt 0:00:22]} Nxc2+ {[%emt 0:01:07]} 9. Qxc2 {[%emt 0:00:06]} b5 {[%emt 0:01:16]} 10. a3 {[%emt 0:05:35]} Bb7 {[%emt 0:01:50]} 11. e5 {[%emt 0:14:33]} Ne4 {[%emt 0:03:09]} 12. Bd2 {[%emt 0:02:46]} Nxc3 {[%emt 0:00:21]} 13. Bxc3 {[%emt 0:00:40]} Be7 {[%emt 0:00:47]} 14. Qd3 $15 {[%emt 0:03:20]} Qc6 {[%emt 0:14:33]} 15. O-O {[%emt 0:04:37]} a5 {[%emt 0:01:52]} 16. Rfc1 {[%emt 0:05:55]} Qd5 {[%emt 0:03:17]} 17. Qd2 {[%emt 0:08:10]} Bd8 {[%emt 0:00:08]} 18. Ne1 {[%emt 0:01:04]} Bb6 {[%emt 0:04:00]} 19. Rd1 {[%emt 0:08:03]} O-O {[%emt 0:00:15]} 20. Kh1 {[%emt 0:03:06]} d6 {[%emt 0:11:31]} 21. f3 {[%emt 0:04:00]} Rfd8 {[%emt 0:00:57]} 22. Nc2 {[%emt 0:04:56]} Rac8 {[%emt 0:08:57]} 23. Ne3 {[%emt 0:04:49]} Qb3 {[%emt 0:00:30]} 24. Qc2 {[%emt 0:01:22]} Bd5 {[%emt 0:01:54]} 25. Qe2 {[%emt 0:07:07]} Bb7 {[%emt 0:01:51]} 26. Qc2 {[%emt 0:01:09]} Qxc2 {[%emt 0:00:22]} 27. Nxc2 {[%emt 0:00:04]} Bd5 {[%emt 0:00:16]} 28. Re1 {[%emt 0:05:44]} Bb3 {[%emt 0:00:41]} 29. Ne3 {[%emt 0:00:18]} dxe5 {[%emt 0:01:44]} 30. dxe5 {[%emt 0:00:03]} Rd3 {[%emt 0:00:10]} 31. Nf1 {[%emt 0:00:50]} h5 {[%emt 0:01:39]} 32. h3 {[%emt 0:01:57]} Rcd8 {[%emt 0:02:24]} 33. Kh2 {[%emt 0:01:14]} h4 {[%emt 0:02:13]} 34. Re4 {[%emt 0:02:04]} g5 {[%emt 0:04:45]} 35. Rg4 {[%emt 0:01:03]} Rd1 {[%emt 0:00:15]} 36. Rxd1 {[%emt 0:00:08]} Rxd1 {[%emt 0:00:09]} 37. Nd2 {[%emt 0:00:03]} Bg1+ {[%emt 0:00:13]} 0-1

[Event "55th Rubinstein Memorial-A 2019"]
[Site "Polanica-Zdroj"]
[Date "2019.08.18"]
[Round "2.8"]
[White "Kozak, Antoni"]
[Black "Mazalon, Mariusz"]
[Result "1-0"]
[ECO "E70"]
[WhiteElo "2354"]
[BlackElo "2012"]
[Annotator "NA"]
[PlyCount "85"]
[EventDate "2019.08.17"]
[EventType "swiss"]
[EventCountry "POL"]
[SourceTitle "playchess.com"]
[Source "ChessBase"]
[SourceQuality "1"]
[TimeControl "40/5400+30:1800+30"]

1. d4 {[%emt 0:00:00]} Nf6 {[%emt 0:03:58]} 2. c4 {[%emt 0:00:00]} g6 {[%emt 0:00:20]} 3. Nc3 {[%emt 0:00:00]} Bg7 {[%emt 0:00:14]} 4. e4 {[%emt 0:00:00]} O-O {[%emt 0:00:13]} 5. Nf3 {[%emt 0:00:02]} c6 {[%emt 0:00:30]} 6. e5 {[%emt 0:11:36]} Ne8 {[%emt 0:00:18]} 7. Bf4 {[%emt 0:01:35]} d6 {[%emt 0:00:33]} 8. h3 {[%emt 0:00:22]} Nd7 {[%emt 0:08:25]} 9. exd6 {[%emt 0:01:18] E70: King's Indian: Miscellaneous lines with 4 e4, including 5 Nge2 and 5 Bd3 0-0 6 Nge2} exd6 {[%emt 0:08:06]} (9... Nxd6 10. Be2 c5 11. d5 Nb6 12. Qb3 e5 13. Bxe5 Bxe5 14. Nxe5 Re8 15. Nf3 Nbxc4 16. O-O Ne5 {½-½ (25) Kolev,A (2590)-Bartel,M (2611) Kavala 2011}) 10. Bd3 $146 {[%emt 0:00:41]} ({Predecessor:} 10. Be2 a6 11. O-O b5 12. Rc1 b4 13. Na4 a5 14. c5 d5 15. Re1 Ba6 16. Bxa6 Rxa6 {0-1 (65) Lukov,V (2425)-Miguel Lago,V (2275) Nigran 1995}) 10... Ndf6 {[%emt 0:00:34]} 11. O-O {[%emt 0:00:13]} Nc7 {[%emt 0:01:20]} 12. Qd2 {[%emt 0:04:33]} a6 {[%emt 0:09:25]} 13. a4 {[%emt 0:05:34]} a5 {[%emt 0:04:47]} 14. Rae1 {[%emt 0:00:05]} Ne6 {[%emt 0:01:08]} 15. Bh2 {[%emt 0:01:53]} d5 {[%emt 0:03:30]} 16. Be5 {[%emt 0:08:24]} dxc4 {[%emt 0:02:52]} 17. Bxc4 {[%emt 0:00:03]} Nc7 {[%emt 0:00:17]} 18. Qc2 {[%emt 0:05:26]} Be6 {[%emt 0:08:21]} (18... Nfd5 $11 {keeps the balance.}) 19. Bxc7 {[%emt 0:00:18]} Qxc7 {[%emt 0:00:18]} 20. Bxe6 {[%emt 0:00:05]} fxe6 {[%emt 0:00:29]} 21. Rxe6 {[%emt 0:05:31]} Rad8 {[%emt 0:02:12]} 22. Rfe1 {[%emt 0:00:56]} Qb6 {[%emt 0:02:13]} 23. Re7 {[%emt 0:02:17]} Nd5 {[%emt 0:03:09]} 24. Nxd5 {[%emt 0:00:32]} Rxd5 {[%emt 0:00:09]} 25. Qe4 {[%emt 0:00:07]} Bxd4 {[%emt 0:04:31]} 26. Qe6+ {[%emt 0:03:04]} Kh8 {[%emt 0:00:21]} 27. Rf7 $18 {[%emt 0:02:39]} Rf5 {[%emt 0:02:53]} 28. Rxf5 {[%emt 0:00:29]} gxf5 {[%emt 0:00:06]} 29. Qd7 {[%emt 0:01:24]} Bxf2+ {[%emt 0:05:41]} 30. Kh2 {[%emt 0:04:56]} Qd8 {[%emt 0:06:42]} 31. Re7 {[%emt 0:00:04]} Qxd7 {[%emt 0:00:14]} 32. Rxd7 {[%emt 0:00:02]} b6 {[%emt 0:01:21]} 33. Ng5 {[%emt 0:00:45]} f4 {[%emt 0:03:20]} 34. h4 {[%emt 0:00:25]} Rf5 {[%emt 0:03:18]} 35. Nf7+ {[%emt 0:00:44]} Kg7 {[%emt 0:01:34]} 36. Nd6+ {[%emt 0:00:05]} Kf6 {[%emt 0:00:11]} 37. Nxf5 {[%emt 0:01:58]} Kxf5 {[%emt 0:00:06]} 38. Rxh7 {[%emt 0:00:02]} Kg4 {[%emt 0:00:11]} 39. h5 {[%emt 0:00:09]} Bd4 {[%emt 0:01:44]} 40. b3 {[%emt 0:00:00]} Kg5 {[%emt 0:00:00]} 41. Kh3 {[%emt 0:00:16]} b5 {[%emt 0:00:28]} 42. axb5 {[%emt 0:00:05]} cxb5 {[%emt 0:00:05]} 43. Rb7 {[%emt 0:00:02]} 1-0

[Event "55th Rubinstein Memorial-A 2019"]
[Site "Polanica-Zdroj"]
[Date "2019.08.18"]
[Round "2.9"]
[White "Psyk, Radoslaw"]
[Black "Kaczmarek, Arkadiusz"]
[Result "0-1"]
[ECO "C06"]
[WhiteElo "2326"]
[BlackElo "1986"]
[Annotator "NA"]
[PlyCount "110"]
[EventDate "2019.08.17"]
[EventType "swiss"]
[EventCountry "POL"]
[SourceTitle "playchess.com"]
[Source "ChessBase"]
[SourceQuality "1"]
[TimeControl "40/5400+30:1800+30"]

1. e4 e6 2. d4 d5 3. Nd2 Nf6 4. e5 Nfd7 5. Bd3 c5 6. c3 Nc6 7. Ne2 cxd4 8. cxd4 f6 9. exf6 Nxf6 10. Nf3 Bd6 11. O-O Qc7 12. Bg5 O-O 13. Bh4 Nh5 14. Qc2 h6 15. Bh7+ {C06: French Tarrasch: 3...Nf6 4 e5 Nfd7 5 Bd3 main lines} Kh8 16. Bg6 Rxf3 (16... Nf4 17. Nxf4 Rxf4 18. Bg3 Rxf3 19. gxf3 Qe7 20. Rad1 Bd7 21. Qc3 Rf8 22. Bb1 Kg8 {1-0 (41) Artemiev,V (2653)-Onischuk,V (2615) Martuni 2016}) 17. Bxh5 {[#]} Bxh2+ $146 ({Predecessor:} 17... Rf5 18. Bg6 Bxh2+ {0-1 (38) Hauge,L (2415)-Werle,J (2551) Novi Sad 2016}) 18. Kh1 Rf5 19. Bg6 Bd6 20. Bxf5 exf5 21. Rae1 Qf7 22. Bg3 Bb4 23. Rd1 Bd7 $14 24. a3 Ba5 25. b4 Bb6 26. Rfe1 a6 27. Kg1 Re8 28. Qc1 Kg8 29. Rd3 g5 30. Be5 Nxe5 31. dxe5 Rxe5 32. Nd4 Re4 33. Nf3 Qe6 34. Red1 Ba4 35. Re1 g4 36. Rxe4 fxe4 37. Nd4 Qf6 38. Qc8+ Kh7 39. Qxb7+ Kg6 40. Rd2 Bxd4 41. Qxd5 Be5 42. Qxe4+ Qf5 43. Qe1 Kf6 44. Qf1 Bb5 45. Qc1 Qf4 46. g3 Qe4 47. Rd8 Kg6 48. Rc8 Bd4 49. Qd2 Be5 50. Qa2 Bf6 51. Qg8+ Bg7 52. Qa2 Bc6 53. Kf1 Qd3+ 54. Qe2 Qb1+ 55. Qe1 Bb5+ 0-1

[Event "55th Rubinstein Memorial-A 2019"]
[Site "Polanica-Zdroj"]
[Date "2019.08.18"]
[Round "2.10"]
[White "Kucza, Karol"]
[Black "Kacprzak, Karol"]
[Result "1-0"]
[ECO "B96"]
[WhiteElo "2296"]
[BlackElo "1973"]
[Annotator "NA"]
[PlyCount "97"]
[EventDate "2019.08.17"]
[EventType "swiss"]
[EventCountry "POL"]
[SourceTitle "playchess.com"]
[Source "ChessBase"]
[SourceQuality "1"]
[TimeControl "40/5400+30:1800+30"]

1. e4 {[%emt 0:00:00]} c5 {[%emt 0:00:00]} 2. Nf3 {[%emt 0:00:00]} d6 {[%emt 0:00:00]} 3. d4 {[%emt 0:00:00]} cxd4 {[%emt 0:00:00]} 4. Nxd4 {[%emt 0:00:00]} Nf6 {[%emt 0:00:00]} 5. Nc3 {[%emt 0:00:00]} a6 {[%emt 0:00:01]} 6. Bg5 {[%emt 0:00:00]} e6 {[%emt 0:00:04]} 7. f4 {[%emt 0:00:03]} h6 {[%emt 0:00:03]} 8. Bh4 {[%emt 0:00:04]} Qc7 {[%emt 0:01:06] B96: Sicilian Najdorf: 6 Bg5 e6 7 f4, lines other than 7...Qb6 and 7...Be7} (8... Qb6 9. a3 Be7 10. Bf2 Qc7 11. Qf3 Nbd7 12. O-O-O b5 13. g4 Bb7 14. h4 Nc5 15. Bd3 h5 16. g5 Ng4 17. Rhg1 {½-½ (25) Grischuk,A (2766)-Vachier Lagrave,M (2779) Saint Louis 2018}) 9. Bxf6 {[%emt 0:00:06]} gxf6 {[%emt 0:00:05]} 10. Qd2 {[%emt 0:00:10]} b5 {[%emt 0:02:50]} 11. O-O-O $146 {[%emt 0:05:00]} ({Predecessor:} 11. a3 Bb7 12. O-O-O Nd7 13. Bxb5 axb5 14. Ndxb5 Qb6 15. Nxd6+ Qxd6 16. Qxd6 Bxd6 17. Rxd6 {0-1 (48) Volpinari,D-Diallo,M Novi Sad 1990}) 11... Bb7 {[%emt 0:02:57]} 12. Bxb5+ {[%emt 0:07:52]} axb5 {[%emt 0:01:30]} 13. Ndxb5 {[%emt 0:00:05]} Qb6 {[%emt 0:09:28]} 14. Nxd6+ {[%emt 0:00:21]} Bxd6 {[%emt 0:00:50]} 15. Qxd6 {[%emt 0:00:07]} Qxd6 {[%emt 0:00:42]} 16. Rxd6 {[%emt 0:00:06]} Ra6 {[%emt 0:12:10]} 17. Rhd1 {[%emt 0:13:30]} Ke7 {[%emt 0:02:08]} 18. R6d3 {[%emt 0:01:46]} Rb6 {[%emt 0:08:53]} 19. b3 {[%emt 0:06:42]} Bc6 {[%emt 0:02:25]} 20. Re3 {[%emt 0:03:01]} Bd7 {[%emt 0:04:08]} 21. Kb2 {[%emt 0:02:11]} Na6 {[%emt 0:02:36]} 22. a3 {[%emt 0:11:46]} Rc8 {[%emt 0:06:21]} 23. b4 {[%emt 0:05:48]} Nc5 $11 {[%emt 0:09:07]} 24. Rd2 {[%emt 0:03:41]} Rb7 {[%emt 0:04:14]} 25. e5 {[%emt 0:03:12]} f5 {[%emt 0:08:36]} 26. Rd4 {[%emt 0:00:48]} Bc6 {[%emt 0:02:43]} 27. g3 {[%emt 0:03:57]} Rd8 {[%emt 0:07:28]} 28. Rc4 {[%emt 0:05:15]} Na4+ {[%emt 0:00:05]} 29. Kb3 {[%emt 0:00:05]} Nxc3 {[%emt 0:00:33]} 30. Rxc6 {[%emt 0:00:18]} Nb5 {[%emt 0:00:35]} 31. c3 {[%emt 0:00:52]} Na7 {[%emt 0:08:06]} 32. Rc5 {[%emt 0:00:48]} Rd5 {[%emt 0:00:27]} 33. Rxd5 {[%emt 0:08:22]} exd5 {[%emt 0:00:01]} 34. Rd3 {[%emt 0:00:43]} Ke6 {[%emt 0:00:10]} 35. c4 {[%emt 0:00:40]} dxc4+ {[%emt 0:04:07]} 36. Kxc4 {[%emt 0:00:05]} Rc7+ {[%emt 0:00:03]} 37. Kb3 {[%emt 0:00:08]} Nc8 {[%emt 0:01:47]} 38. a4 {[%emt 0:00:08]} Rd7 {[%emt 0:01:08]} 39. Rc3 {[%emt 0:03:21]} Ne7 {[%emt 0:00:15]} 40. a5 {[%emt 0:00:00]} Rb7 {[%emt 0:00:00]} 41. Ka4 {[%emt 0:01:41]} Nd5 {[%emt 0:04:45]} 42. Rc6+ {[%emt 0:00:48]} Ke7 {[%emt 0:00:05]} 43. b5 {[%emt 0:00:15]} h5 {[%emt 0:01:16]} 44. b6 {[%emt 0:01:42]} h4 {[%emt 0:00:52]} 45. Kb5 {[%emt 0:00:41]} hxg3 {[%emt 0:00:17]} 46. hxg3 {[%emt 0:00:04]} f6 {[%emt 0:00:37]} 47. a6 {[%emt 0:01:24]} Rb8 {[%emt 0:00:05]} 48. a7 {[%emt 0:01:09]} Rb7 {[%emt 0:00:08]} 49. exf6+ {[%emt 0:00:56]} 1-0

[Event "55th Rubinstein Memorial-A 2019"]
[Site "Polanica-Zdroj"]
[Date "2019.08.18"]
[Round "2.11"]
[White "Kozlowski, Michal"]
[Black "Mis, Mieszko"]
[Result "0-1"]
[ECO "B06"]
[WhiteElo "1926"]
[BlackElo "2296"]
[Annotator "NA"]
[PlyCount "146"]
[EventDate "2019.08.17"]
[EventType "swiss"]
[EventCountry "POL"]
[SourceTitle "playchess.com"]
[Source "ChessBase"]
[SourceQuality "1"]
[TimeControl "40/5400+30:1800+30"]

1. e4 {[%emt 0:00:00]} g6 {[%emt 0:00:00]} 2. d4 {[%emt 0:00:00]} Bg7 {[%emt 0:00:00]} 3. Nf3 {[%emt 0:00:00]} d6 {[%emt 0:00:28]} 4. Bc4 {[%emt 0:00:00]} Nf6 {[%emt 0:02:18]} 5. Qe2 {[%emt 0:00:04]} O-O {[%emt 0:04:55]} 6. Nc3 {[%emt 0:02:37]} Bg4 {[%emt 0:01:26]} 7. h3 {[%emt 0:05:03]} Bxf3 {[%emt 0:00:19]} 8. Qxf3 {[%emt 0:00:01]} Nc6 {[%emt 0:02:03]} 9. Be3 {[%emt 0:02:27]} e5 {[%emt 0:02:17] B08: Pirc Defence: Classical System} 10. dxe5 {[%emt 0:02:38]} Nxe5 {[%emt 0:01:33]} (10... dxe5 11. Ne2 Nd4 12. Nxd4 exd4 13. O-O-O c5 14. Bg5 Qb6 15. Rhe1 Rae8 16. Qd3 a6 17. e5 {1-0 (32) Ruperez Benito,A (2353)-Perez Gonzalez,J (2221) Madrid 2018}) 11. Qe2 {[%emt 0:00:06]} c6 $146 {[%emt 0:10:42]} ({Predecessor:} 11... Nxc4 12. Qxc4 Re8 13. O-O-O a6 14. f3 Qd7 15. h4 b5 16. Qd3 Qe6 17. Kb1 {0-1 (70) Hemmert,B-Fritsch,R Berlin West 1972}) 12. Bb3 {[%emt 0:19:40]} b5 {[%emt 0:00:53]} 13. a3 {[%emt 0:07:15]} a5 {[%emt 0:01:14]} 14. f3 {[%emt 0:00:26]} b4 {[%emt 0:08:37]} 15. axb4 {[%emt 0:00:09]} axb4 {[%emt 0:00:10]} 16. Rxa8 {[%emt 0:00:06]} Qxa8 {[%emt 0:00:02]} 17. Na4 {[%emt 0:10:08]} d5 {[%emt 0:07:35]} 18. O-O {[%emt 0:02:00]} dxe4 {[%emt 0:01:22]} 19. fxe4 {[%emt 0:00:11]} Nxe4 {[%emt 0:07:16]} 20. Bf4 {[%emt 0:00:04]} Qa7+ $15 {[%emt 0:01:06]} 21. Be3 {[%emt 0:17:53]} Qe7 {[%emt 0:09:18]} 22. Rf4 {[%emt 0:06:06]} Ng5 {[%emt 0:08:13]} 23. Bc5 {[%emt 0:09:52]} Nxh3+ {[%emt 0:01:41]} 24. gxh3 {[%emt 0:05:11]} Qg5+ {[%emt 0:00:05]} 25. Rg4 {[%emt 0:00:09]} Nxg4 {[%emt 0:00:23]} 26. Qxg4 {[%emt 0:02:08]} Qxg4+ {[%emt 0:06:59]} 27. hxg4 {[%emt 0:00:01]} Rd8 {[%emt 0:00:07]} 28. Kg2 {[%emt 0:02:01]} Bf8 {[%emt 0:00:25]} 29. Kf3 {[%emt 0:00:32]} Bxc5 {[%emt 0:01:19]} 30. Nxc5 {[%emt 0:00:02]} Kg7 {[%emt 0:00:25]} 31. Ke3 {[%emt 0:02:36]} h5 {[%emt 0:04:09]} 32. gxh5 {[%emt 0:00:01]} gxh5 {[%emt 0:00:06]} 33. Nd3 {[%emt 0:00:05]} h4 {[%emt 0:01:43]} 34. Kf3 {[%emt 0:01:51]} Rd4 {[%emt 0:01:46]} 35. Ba4 {[%emt 0:00:34]} Kf6 {[%emt 0:03:35]} 36. b3 {[%emt 0:02:31]} Kg5 {[%emt 0:05:02]} 37. Nf2 {[%emt 0:02:46]} f5 {[%emt 0:00:49]} 38. Bxc6 {[%emt 0:00:55]} Rd2 {[%emt 0:00:16]} 39. Nh3+ {[%emt 0:00:19]} Kf6 {[%emt 0:00:11]} 40. Nf4 {[%emt 0:00:00]} Rxc2 {[%emt 0:00:00]} 41. Nd5+ {[%emt 0:04:01]} Ke5 {[%emt 0:00:49]} 42. Nxb4 {[%emt 0:00:17]} Rc3+ {[%emt 0:00:37]} 43. Ke2 {[%emt 0:00:16]} h3 {[%emt 0:02:30]} 44. Ba8 {[%emt 0:08:34]} h2 {[%emt 0:01:17]} 45. Nd3+ {[%emt 0:00:56]} Kd4 {[%emt 0:00:08]} 46. Ne1 {[%emt 0:00:49]} Rxb3 47. Bh1 {[%emt 0:11:34]} Ke5 {[%emt 0:07:00]} 48. Kf2 {[%emt 0:00:44]} Kf4 {[%emt 0:03:24]} 49. Kg2 {[%emt 0:02:40]} Rb1 {[%emt 0:05:49]} 50. Nd3+ {[%emt 0:01:05]} Ke3 {[%emt 0:00:05]} 51. Ne5 {[%emt 0:00:43]} Rb2+ {[%emt 0:00:21]} 52. Kh3 {[%emt 0:01:47]} Rc2 {[%emt 0:00:16]} 53. Kg3 {[%emt 0:00:40]} Rc5 {[%emt 0:02:24]} 54. Ng6 {[%emt 0:01:16]} f4+ {[%emt 0:14:37]} 55. Nxf4 {[%emt 0:01:59]} Rg5+ {[%emt 0:00:07]} 56. Kxh2 {[%emt 0:00:05]} Kxf4 {[%emt 0:00:06]} 57. Bc6 {[%emt 0:00:37]} Rc5 {[%emt 0:00:26]} 58. Ba4 {[%emt 0:01:08]} Ra5 {[%emt 0:02:37]} 59. Bc6 {[%emt 0:00:20]} Ra3 {[%emt 0:02:05]} 60. Bb7 {[%emt 0:00:59]} Rg3 {[%emt 0:00:06]} 61. Bc6 {[%emt 0:00:21]} Kg4 {[%emt 0:00:17]} 62. Bb7 {[%emt 0:00:49]} Rc3 {[%emt 0:01:18]} 63. Kg1 {[%emt 0:00:39]} Kf4 {[%emt 0:02:02]} 64. Kf1 {[%emt 0:00:14]} Ke3 {[%emt 0:00:01]} 65. Kg2 {[%emt 0:00:05]} Rc2+ {[%emt 0:00:19]} 66. Kh3 {[%emt 0:00:34]} Kf4 {[%emt 0:00:19]} 67. Bd5 {[%emt 0:00:28]} Rc3+ {[%emt 0:00:45]} 68. Kg2 {[%emt 0:00:11]} Rc2+ {[%emt 0:01:03]} 69. Kh3 {[%emt 0:00:11]} Rc5 {[%emt 0:00:43]} 70. Bb7 {[%emt 0:00:19]} Rg5 {[%emt 0:00:15]} 71. Bc6 {[%emt 0:00:44]} Rg3+ {[%emt 0:01:15]} 72. Kh2 {[%emt 0:00:06]} Kg4 {[%emt 0:00:55]} 73. Bd7+ {[%emt 0:00:43]} Kf3 0-1